[Event "Croatian Championship 2022"]
[Site "Split"]
[Date "2022.12.08"]
[Round "10.3"]
[White "Bosiocic, Marin"]
[Black "Brkic, Ante"]
[Result "1/2-1/2"]
[ECO "E05"]
[WhiteElo "2536"]
[BlackElo "2610"]
[Annotator "TA"]
[PlyCount "45"]
[EventDate "2022.11.29"]
[EventType "tourn"]
[EventCountry "CRO"]
[SourceTitle "playchess.com"]
[Source "ChessBase"]
[SourceQuality "1"]
[TimeControl "40/5400+30:1800+30"]

{[%evp 20,45,10,7,7,11,4,6,5,4,6,4,4,11,5,0,0,0,0,0,0,0,0,0,0,0,0,0]} 1. Nf3 {[%emt 0:00:01]} d5 {[%emt 0:00:06]} 2. g3 {[%emt 0:00:02]} Nf6 {[%emt 0:00:07]} 3. Bg2 {[%emt 0:00:03]} e6 {[%emt 0:00:05]} 4. O-O {[%emt 0:00:03]} Be7 {[%emt 0:00:04]} 5. c4 {[%emt 0:00:03]} O-O {[%emt 0:00:05]} 6. d4 {[%emt 0:00:02]} dxc4 {[%emt 0:00:05]} 7. Qc2 {[%emt 0:00:04]} a6 {[%emt 0:00:06]} 8. Qxc4 {[%emt 0:00:03]} b5 {[%emt 0:00:04]} 9. Qc2 {[%emt 0:00:04]} Bb7 {[%emt 0:00:03]} 10. Bf4 {[%emt 0:00:06]} Nc6 {[%emt 0:00:05]} 11. Nc3 {[%emt 0:00:07] The position is equal.} Nb4 {[%emt 0:00:06] E05: Open Catalan: 5 Nf3 Be7.} ({Resist} 11... Nxd4 12. Nxd4 Bxg2 13. Rfd1 $16) 12. Qd2 {[%emt 0:00:03]} c5 {[%emt 0:00:09]} 13. dxc5 {[%emt 0:00:03]} Bxc5 {[%emt 0:00:07]} 14. Qxd8 {[%emt 0:00:11]} Rfxd8 {[%emt 0:00:04]} 15. a4 {[%emt 0:00:09]} Ne4 {[%emt 0:00:02]} 16. Nxe4 {[%emt 0:00:06]} Bxe4 {[%emt 0:00:04] [#]} 17. axb5 $146 {[%emt 0:00:04]} ({Predecessor:} 17. Rfc1 Be7 18. axb5 axb5 19. Rxa8 Bxa8 20. Be3 Bf6 21. Bb6 {½-½ (21) Zidu,J (2483)-Bernal Varela,N (2500) FICGS email 2021}) 17... axb5 {[%emt 0:00:03]} 18. Rxa8 {[%emt 0:00:05]} Bxa8 {[%emt 0:00:05]} 19. Rc1 {[%emt 0:00:05]} Bb6 {[%emt 0:00:05]} 20. Ne1 {[%emt 0:00:02]} Bxg2 {[%emt 0:00:05]} 21. Kxg2 {[%emt 0:00:02]} f6 {[%emt 0:00:08]} 22. Nc2 {[%emt 0:00:02] Prevents e5.} Nxc2 {[%emt 0:00:04]} 23. Rxc2 {[%emt 0:00:03] An interesting draw.   Weighted Error Value: White=0.00 (flawless) /Black=0.00 (flawless)} 1/2-1/2

[Event "Croatian Championship 2022"]
[Site "Split"]
[Date "2022.12.08"]
[Round "10.4"]
[White "Kozul, Zdenko"]
[Black "Kurajica, Bojan"]
[Result "1/2-1/2"]
[ECO "D07"]
[WhiteElo "2539"]
[BlackElo "2487"]
[Annotator "TA"]
[PlyCount "99"]
[EventDate "2022.11.29"]
[EventType "tourn"]
[EventCountry "CRO"]
[SourceTitle "playchess.com"]
[Source "ChessBase"]
[SourceQuality "1"]
[TimeControl "40/5400+30:1800+30"]

{[%evp 9,99,52,55,51,61,53,54,49,52,59,50,68,85,70,79,44,67,67,91,94,81,104,107,96,208,209,206,202,212,197,233,217,219,212,193,192,233,189,211,188,198,201,203,205,192,180,227,235,296,174,169,178,155,120,143,-16,-16,-16,-18,-15,-16,-15,-15,-16,-14,-51,0,0,0,0,462,467,400,368,364,196,183,250,253,255,237,223,236,90,69,68,66,71,71,0,0,-8]} 1. d4 {[%emt 0:00:46]} d5 {[%emt 0:00:23]} 2. c4 {[%emt 0:00:05]} Nc6 {[%emt 0:00:06]} 3. Nc3 {[%emt 0:02:06]} dxc4 {[%emt 0:00:32]} 4. d5 {[%emt 0:00:44]} Ne5 {[%emt 0:00:35]} 5. f4 {[%emt 0:00:29]} Nd7 {[%emt 0:02:06]} 6. e4 {[%emt 0:00:32] D07: Queen's Gambit: Chigorin Defence.} Nb6 {[%emt 0:00:21]} 7. a4 {[%emt 0:00:11]} a5 $1 {[%emt 0:00:38]} 8. Be3 {[%emt 0:00:18] White is slightly better.} e6 {[%emt 0:03:30]} 9. Bxb6 {[%emt 0:00:29]} cxb6 {[%emt 0:00:06]} 10. Bxc4 {[%emt 0:09:57]} Bc5 {[%emt 0:08:24]} 11. dxe6 {[%emt 0:29:24]} Bxe6 {[%emt 0:07:16]} 12. Bxe6 {[%emt 0:02:42]} (12. Bb5+ {simplifies} Bd7 13. Qxd7+ Qxd7 14. Bxd7+ Kxd7 15. O-O-O+) 12... fxe6 {[%emt 0:07:29] [#]} 13. Qb3 $146 {[%emt 0:04:23]} ({Predecessor:} 13. Qh5+ g6 14. Qe5 Qf6 15. Nf3 Qxe5 16. Nxe5 Nf6 17. Ke2 Ke7 18. Nd3 Rhd8 19. e5 {1-0 (30) Bekker Jensen,S (2372)-Olesen,M (2272) Denmark 2006}) 13... Qd4 {[%emt 0:20:00]} 14. Qxe6+ {[%emt 0:01:21]} Ne7 {[%emt 0:02:32]} 15. Nge2 {[%emt 0:01:19]} Qf2+ {[%emt 0:05:17]} 16. Kd2 {[%emt 0:00:38] Kc2 is the strong threat. White is more active.} ({Don't do} 16. Kd1 Qxg2 17. Kc2 Qg6 $14) 16... Rd8+ {[%emt 0:01:59]} (16... Bb4 $16 {was called for.}) 17. Kc2 $1 $18 {[%emt 0:01:21]} ({Worse is} 17. Kc1 Qxg2 18. Kc2 (18. Rd1 $2 Rxd1+ 19. Kxd1 Qh1+ 20. Kc2 Qxa1 $19) 18... Qg6 $11) 17... Rd6 {[%emt 0:01:07]} (17... Qe3 $2 18. Rhd1 $18) 18. Qh3 {[%emt 0:04:24]} Rg6 {[%emt 0:06:18]} 19. g4 {[%emt 0:03:15]} Bb4 {[%emt 0:01:25]} 20. Rhf1 {[%emt 0:01:21]} Qc5 {[%emt 0:00:04]} 21. f5 {[%emt 0:04:46] Against Re6} Rh6 {[%emt 0:05:10]} 22. Qg3 {[%emt 0:00:36]} Nc6 {[%emt 0:00:10]} 23. Rad1 {[%emt 0:09:24]} Qe5 {[%emt 0:06:28]} (23... Qc4 $2 24. g5 Rh5 25. b3 $18) 24. Rh1 {[%emt 0:01:51]} Qxg3 {[%emt 0:07:21]} 25. hxg3 {[%emt 0:00:27]} ({But not} 25. Nxg3 $6 O-O 26. h3 Re8) 25... Rxh1 {[%emt 0:00:13]} 26. Rxh1 {[%emt 0:00:08]} Ne5 {[%emt 0:00:04]} 27. g5 {[%emt 0:04:15][%cal Og5g6] Threatens to win with g6!} O-O {[%emt 0:00:29]} (27... Nf7 $142 28. Nd5 Nxg5) 28. Nf4 {[%emt 0:05:47]} Rc8 {[%emt 0:02:15]} 29. Nfd5 {[%emt 0:01:14] Prevents Be7.} (29. Rd1 $142) 29... Bc5 {[%emt 0:01:03]} 30. Kb3 {[%emt 0:03:29]} Nf3 {[%emt 0:01:57]} 31. Rh5 {[%emt 0:01:09]} Rc6 {[%emt 0:00:58] [#]} 32. f6 $2 {[%emt 0:01:41]} ({White should play} 32. g4 $1 $16) 32... g6 $1 $11 {[%emt 0:02:09]} 33. Rh1 {[%emt 0:02:33] And now Ne7+ would win.} Nxg5 {[%emt 0:00:11]} 34. Ne7+ {[%emt 0:00:20]} Bxe7 {[%emt 0:05:32]} 35. fxe7 {[%emt 0:00:05][%mdl 4096] Endgame KRN-KRN} Re6 {[%emt 0:01:01][%csl LRe4,LRe7] Inhibits e8Q+.} 36. Nd5 {[%emt 0:00:16]} Nxe4 {[%emt 0:00:07]} 37. Rc1 {[%emt 0:03:39] Strongly threatening Rc8+.} Nc5+ {[%emt 0:01:15]} (37... Nxg3 $2 38. Rc8+ Kf7 39. Rf8+ Kg7 40. e8=Q Rxe8 41. Rxe8 $18) (37... Nd6 $1 $15) 38. Kc4 {[%emt 0:01:11]} Kg7 {[%emt 0:01:38] Against e8Q} 39. Kb5 {[%emt 0:00:38]} Re5 $2 {[%emt 0:00:52][%mdl 8192]} (39... h5 $11 {and Black stays safe.}) 40. Kxb6 $18 {[%emt 0:00:00]} Nd7+ {[%emt 0:00:00]} (40... Nxa4+ $2 41. Kc7 $18) 41. Kxb7 {[%emt 0:02:34] aiming for Rc7.} Nf6 {[%emt 0:06:59] [#]} 42. Rc7 $1 {[%emt 0:05:51]} Ne8 {[%emt 0:00:42][%cal Oe8c7]} 43. Rc5 {[%emt 0:00:14]} h5 {[%emt 0:05:29]} 44. Kb6 {[%emt 0:03:27]} Kf7 {[%emt 0:10:27]} 45. Rxa5 {[%emt 0:08:45]} g5 {[%emt 0:00:36]} 46. Rc5 {[%emt 0:06:11]} (46. Kc6 $18 {is more deadly.}) 46... h4 $16 {[%emt 0:02:35]} 47. gxh4 {[%emt 0:00:04]} gxh4 {[%emt 0:00:06]} 48. Nf4 $1 {[%emt 0:00:04] Against h3} Re4 {[%emt 0:00:37]} 49. Nh3 {[%emt 0:01:01]} (49. Rf5+ $16 Kxe7 50. b3) 49... Rxa4 $11 {[%emt 0:00:47]} 50. Rf5+ {[%emt 0:00:43] Weighted Error Value: White=0.21 (precise) /Black=0.26 (precise)} 1/2-1/2

[Event "Croatian Championship 2022"]
[Site "Split"]
[Date "2022.12.08"]
[Round "10.5"]
[White "Doric, Darko"]
[Black "Stevic, Hrvoje"]
[Result "0-1"]
[ECO "E93"]
[WhiteElo "2446"]
[BlackElo "2543"]
[Annotator "TA"]
[PlyCount "62"]
[EventDate "2022.11.29"]
[EventType "tourn"]
[EventCountry "CRO"]
[SourceTitle "playchess.com"]
[Source "ChessBase"]
[SourceQuality "1"]
[TimeControl "40/5400+30:1800+30"]

{[%evp 18,62,62,43,42,0,3,-32,-32,-32,-32,-32,-32,-36,-59,-64,-42,-34,-39,-97,-89,-105,-107,-91,-111,-100,-89,-97,-94,-238,-226,-251,-239,-315,-308,-317,-331,-334,-332,-335,-320,-310,-312,-902,-872,-1260,-1181]} 1. d4 {[%emt 0:00:04]} Nf6 {[%emt 0:03:02]} 2. c4 {[%emt 0:02:35]} g6 {[%emt 0:00:04]} 3. Nc3 {[%emt 0:00:09]} Bg7 {[%emt 0:00:07]} 4. e4 {[%emt 0:00:06]} d6 {[%emt 0:00:10]} 5. Be2 {[%emt 0:00:09]} O-O {[%emt 0:00:51]} 6. Be3 {[%emt 0:00:03]} e5 {[%emt 0:02:03]} 7. d5 {[%emt 0:00:09]} Na6 {[%emt 0:02:38]} 8. h3 {[%emt 0:00:07]} Nc5 {[%emt 0:01:02]} 9. Qc2 {[%emt 0:00:05]} a5 {[%emt 0:09:44]} 10. Nf3 {[%emt 0:00:06]} Nh5 {[%emt 0:04:26][%cal Bf6h5,Bh5f4,Bf4e2][%mdl 32] E93: King's Indian: Classical: Petrosian System with 7...Nbd7.} 11. O-O {[%emt 0:01:07]} Nf4 {[%emt 0:03:10]} 12. Rfe1 {[%emt 0:00:22] [#]} Nxe2+ $146 {[%emt 0:09:26] Black is slightly better.} ({Predecessor:} 12... b6 13. Rad1 Nxe2+ 14. Rxe2 f5 15. Bg5 Qe8 16. Be3 Ba6 17. b3 a4 18. b4 Nxe4 19. Nxe4 fxe4 {1-0 (35) Dolzhikov,A (1808)-Pardoe,I (1687) ICCF email 2018}) 13. Qxe2 {[%emt 0:00:26]} b6 {[%emt 0:00:22]} 14. Bg5 {[%emt 0:19:38]} f6 {[%emt 0:04:27]} 15. Bh4 {[%emt 0:00:07]} g5 {[%emt 0:01:35][%cal Bg6g5,Bg5g4][%mdl 32]} 16. Bg3 {[%emt 0:00:03]} f5 {[%emt 0:00:03]} 17. exf5 {[%emt 0:02:59]} Bxf5 {[%emt 0:00:12]} 18. Rad1 {[%emt 0:04:44]} ({White must play} 18. Qe3 $1 $15) 18... g4 $17 {[%emt 0:06:21]} 19. Nh4 {[%emt 0:00:32]} gxh3 {[%emt 0:01:26]} 20. Nxf5 {[%emt 0:02:57]} Rxf5 {[%emt 0:00:04]} 21. Qg4 {[%emt 0:00:31]} Qf6 {[%emt 0:01:23]} 22. Qxh3 {[%emt 0:00:23]} Qg6 $36 {[%emt 0:00:50][%mdl 2048] [#] White must now prevent ...Rh5. White is under strong pressure.} 23. Bh2 {[%emt 0:06:53]} (23. Bh4 $17 {is the only way for White.}) 23... Rh5 {[%emt 0:06:26]} 24. Qe3 {[%emt 0:01:47]} Kh8 {[%emt 0:09:45]} 25. f3 {[%emt 0:02:03]} Bh6 {[%emt 0:05:56]} 26. Qe2 {[%emt 0:01:44]} Rf8 {[%emt 0:03:32]} 27. Ne4 {[%emt 0:01:04]} Bf4 {[%emt 0:00:41]} 28. Bxf4 {[%emt 0:00:43]} Rxf4 {[%emt 0:01:20]} 29. Nxc5 {[%emt 0:03:07]} bxc5 {[%emt 0:00:36]} 30. Kf2 {[%emt 0:05:59] [#] Prevents Qg3+.} (30. Qf2) 30... Rh2 $19 {[%emt 0:01:39]} 31. Rg1 {[%emt 0:00:24]} e4 {[%emt 0:00:21] White did not feel at home in the position after the opening.   Weighted Error Value: White=0.64/Black=0.02 (flawless)} 0-1

[Event "Croatian Championship 2022"]
[Site "Split"]
[Date "2022.12.08"]
[Round "10.6"]
[White "Saric, Ante"]
[Black "Jovanovic, Zoran"]
[Result "1/2-1/2"]
[ECO "E62"]
[WhiteElo "2504"]
[BlackElo "2513"]
[Annotator "TA"]
[PlyCount "35"]
[EventDate "2022.11.29"]
[EventType "tourn"]
[EventCountry "CRO"]
[SourceTitle "playchess.com"]
[Source "ChessBase"]
[SourceQuality "1"]
[TimeControl "40/5400+30:1800+30"]

{[%evp 20,35,30,11,33,0,10,10,9,12,0,0,0,0,0,0,-4,-15]} 1. Nf3 {[%emt 0:00:10]} d6 {[%emt 0:00:22]} 2. d4 {[%emt 0:00:04]} Nf6 {[%emt 0:00:06]} 3. g3 {[%emt 0:00:11]} g6 {[%emt 0:00:04]} 4. Bg2 {[%emt 0:00:03]} Bg7 {[%emt 0:00:03]} 5. O-O {[%emt 0:00:07]} O-O {[%emt 0:00:07]} 6. c4 {[%emt 0:00:03]} c6 {[%emt 0:00:03]} 7. Nc3 {[%emt 0:00:04]} Bf5 {[%emt 0:00:03]} 8. b3 {[%emt 0:01:41]} Ne4 {[%emt 0:01:10]} 9. Bb2 {[%emt 0:00:04]} Nxc3 {[%emt 0:00:04]} 10. Bxc3 {[%emt 0:00:02]} Be4 {[%emt 0:00:09]} 11. e3 {[%emt 0:00:26]} b5 {[%emt 0:00:05] E62: King's Indian: Fianchetto: 6...c6 and Panno Variation (6...Nc6) without ...a6.} 12. Qe2 {[%emt 0:11:32]} bxc4 {[%emt 0:00:08] The position is equal.} 13. Qxc4 {[%emt 0:04:33]} Nd7 {[%emt 0:08:49] [#]} 14. Rac1 $146 {[%emt 0:09:06]} ({Predecessor:} 14. Rfc1 a5 15. Nd2 Nb6 16. Qe2 Bxg2 17. Kxg2 Nd5 18. Bb2 c5 19. Nf3 cxd4 20. Bxd4 Qd7 21. Rc4 {½-½ (21) Blagojevic,D (2482)-Tadic,B (2464) Niksic 2016}) 14... Qb6 {[%emt 0:14:18]} 15. Rfd1 {[%emt 0:06:35][%cal Of3e5]} Qb7 {[%emt 0:00:44]} 16. Ne1 {[%emt 0:11:12][%cal Bf3e1,Be1g2,Bg2f4][%mdl 32]} Bxg2 {[%emt 0:01:58]} 17. Nxg2 {[%emt 0:01:02]} a5 {[%emt 0:00:05]} 18. Nf4 {[%emt 0:02:53] An interesting draw.   Weighted Error Value: White=0.09 (flawless) /Black=0.04 (flawless)} 1/2-1/2

[Event "Croatian Championship 2022"]
[Site "Split"]
[Date "2022.12.09"]
[Round "11.1"]
[White "Jovanovic, Zoran"]
[Black "Martinovic, Sasa"]
[Result "1/2-1/2"]
[ECO "C18"]
[WhiteElo "2513"]
[BlackElo "2557"]
[Annotator "TA"]
[PlyCount "39"]
[EventDate "2022.11.29"]
[EventType "tourn"]
[EventCountry "CRO"]
[SourceTitle "playchess.com"]
[Source "ChessBase"]
[SourceQuality "1"]
[TimeControl "40/5400+30:1800+30"]

{[%evp 15,39,0,0,0,0,-8,-2,-5,22,18,25,14,21,5,20,18,34,32,43,38,43,56,54,42,50,51]} 1. e4 {[%emt 0:00:01]} e6 {[%emt 0:00:02]} 2. d4 {[%emt 0:00:02]} d5 {[%emt 0:00:03]} 3. Nc3 {[%emt 0:00:01]} Bb4 {[%emt 0:00:05]} 4. e5 {[%emt 0:00:02]} c5 {[%emt 0:00:03]} 5. a3 {[%emt 0:00:02]} Bxc3+ {[%emt 0:00:04]} 6. bxc3 {[%emt 0:00:02]} Qa5 {[%emt 0:00:04]} 7. Bd2 {[%emt 0:00:03]} Qa4 {[%emt 0:00:04]} 8. Qg4 {[%emt 0:00:02]} Kf8 {[%emt 0:00:03]} 9. Qd1 {[%emt 0:00:04] 9.h4 injects fresh life into this line. C18: French: 3 Nc3 Bb4: Main line: 7 h4 and 7 Qg4.} b6 {[%emt 0:00:04]} 10. dxc5 {[%emt 0:00:03]} bxc5 {[%emt 0:00:04]} 11. c4 {[%emt 0:00:02] The position is equal. 11.Nf3 is vanishing.} Ne7 {[%emt 0:00:04]} 12. cxd5 {[%emt 0:00:03]} exd5 {[%emt 0:00:03]} 13. Nf3 {[%emt 0:00:03]} Nbc6 {[%emt 0:00:03]} 14. Be2 {[%emt 0:00:06]} Bf5 {[%emt 0:00:01]} 15. c3 {[%emt 0:00:04]} Qxd1+ {[%emt 0:00:02]} 16. Rxd1 {[%emt 0:00:04] [#] White is slightly better.} Rb8 $146 {[%emt 0:00:05]} ({Predecessor:} 16... Bc2 17. Rc1 Be4 18. Be3 c4 19. O-O Ng6 20. Rfd1 Ngxe5 21. Ne1 Rd8 22. f3 Bf5 {½-½ (31) Daubenfeld,N (2533)-Tauber,H (2539) ICCF email 2017}) 17. Be3 {[%emt 0:00:02]} c4 {[%emt 0:00:04]} 18. Nd4 {[%emt 0:00:11]} Nxd4 {[%emt 0:00:03]} 19. Bxd4 {[%emt 0:00:08]} a5 {[%emt 0:00:01]} 20. O-O {[%emt 0:00:32] Weighted Error Value: White=0.01 (flawless) /Black=0.06 (flawless)} 1/2-1/2

[Event "Croatian Championship 2022"]
[Site "Split"]
[Date "2022.12.09"]
[Round "11.2"]
[White "Stevic, Hrvoje"]
[Black "Saric, Ante"]
[Result "1/2-1/2"]
[ECO "B18"]
[WhiteElo "2543"]
[BlackElo "2504"]
[Annotator "TA"]
[PlyCount "40"]
[EventDate "2022.11.29"]
[EventType "tourn"]
[EventCountry "CRO"]
[SourceTitle "playchess.com"]
[Source "ChessBase"]
[SourceQuality "1"]
[TimeControl "40/5400+30:1800+30"]

{[%evp 20,23,18,10,16,14]} 1. e4 {[%emt 0:02:36]} c6 {[%emt 0:00:04]} 2. d4 {[%emt 0:00:05]} d5 {[%emt 0:00:04]} 3. Nc3 {[%emt 0:00:04][%cal Bb1c3,Bc3e4,Be4g3][%mdl 32]} dxe4 {[%emt 0:00:04]} 4. Nxe4 {[%emt 0:00:03]} Bf5 {[%emt 0:00:04]} 5. Ng3 {[%emt 0:00:04]} Bg6 {[%emt 0:00:04]} 6. Nf3 {[%emt 0:00:04]} Nd7 {[%emt 0:00:03]} 7. Bd3 {[%emt 0:00:04]} Bxd3 {[%emt 0:00:03]} 8. Qxd3 {[%emt 0:00:04]} Ngf6 {[%emt 0:00:04]} 9. O-O {[%emt 0:00:03]} e6 {[%emt 0:00:04]} 10. c4 {[%emt 0:00:04]} Be7 {[%emt 0:00:03]} 11. b3 {[%emt 0:00:04]} O-O {[%emt 0:00:04] B18: Classical Caro-Kann: 4...Bf5 sidelines.} 12. Bb2 {[%emt 0:00:02] [#] Not much happened in this game.} {Predecessor:} Qc7 $146 13. Rad1 Rad8 14. Ne4 Nxe4 15. Qxe4 Rfe8 16. Qe2 Bf6 17. Ne5 Nxe5 18. dxe5 Be7 19. Bc3 Rxd1 20. Rxd1 Rd8 {½-½ (31) Spasov,V (2553)-Georgiev,K (2623) Pleven 2015} 1/2-1/2

[Event "Croatian Championship 2022"]
[Site "Split"]
[Date "2022.12.09"]
[Round "11.3"]
[White "Kurajica, Bojan"]
[Black "Doric, Darko"]
[Result "1/2-1/2"]
[ECO "A17"]
[WhiteElo "2487"]
[BlackElo "2446"]
[Annotator "TA"]
[PlyCount "34"]
[EventDate "2022.11.29"]
[EventType "tourn"]
[EventCountry "CRO"]
[SourceTitle "playchess.com"]
[Source "ChessBase"]
[SourceQuality "1"]
[TimeControl "40/5400+30:1800+30"]

{[%evp 15,21,0,-6,-30,0,0,1,-2]} 1. d4 {[%emt 0:01:08]} d5 {[%emt 0:00:08]} 2. c4 {[%emt 0:00:04]} e6 {[%emt 0:00:04]} 3. cxd5 {[%emt 0:00:04]} exd5 {[%emt 0:00:03]} 4. Nc3 {[%emt 0:00:05]} c6 {[%emt 0:00:02]} 5. Nf3 {[%emt 0:00:04]} Bf5 {[%emt 0:00:04]} 6. g3 {[%emt 0:00:06]} Bd6 {[%emt 0:00:05]} 7. Bg2 {[%emt 0:00:05]} Nf6 {[%emt 0:00:04]} 8. O-O {[%emt 0:00:06]} O-O {[%emt 0:00:03]} 9. Bg5 {[%emt 0:00:05] A17: English Opening: 1...Nf6 with ...Bb4.} h6 {[%emt 0:00:12]} 10. Bxf6 {[%emt 0:00:05]} Qxf6 {[%emt 0:00:03]} 11. e3 {[%emt 0:00:02] [#] Not much happened in this game.   Weighted Error Value: White=0.11 (very precise) /Black=0.12 (very precise)} {Predecessor:} Nd7 $146 12. Qd2 Rfe8 13. a3 Qe6 14. Rfc1 Bh3 15. Bh1 Nf6 16. b4 Ne4 17. Nxe4 dxe4 {0-1 (43) Stadlinger,M (1865)-Cafasso,E (1973) Playchess.com INT 2020} 1/2-1/2

[Event "Croatian Championship 2022"]
[Site "Split"]
[Date "2022.12.09"]
[Round "11.4"]
[White "Brkic, Ante"]
[Black "Kozul, Zdenko"]
[Result "1/2-1/2"]
[ECO "B52"]
[WhiteElo "2610"]
[BlackElo "2539"]
[Annotator "TA"]
[PlyCount "26"]
[EventDate "2022.11.29"]
[EventType "tourn"]
[EventCountry "CRO"]
[SourceTitle "playchess.com"]
[Source "ChessBase"]
[SourceQuality "1"]
[TimeControl "40/5400+30:1800+30"]

{[%evp 20,23,-6,-5,-5,0]} 1. e4 {[%emt 0:00:02]} c5 {[%emt 0:00:04]} 2. Nf3 {[%emt 0:00:04]} d6 {[%emt 0:00:04]} 3. Bb5+ {[%emt 0:00:02]} Bd7 {[%emt 0:00:04]} 4. Bxd7+ {[%emt 0:00:02]} Qxd7 {[%emt 0:00:05]} 5. O-O {[%emt 1:32:50]} Nf6 {[%emt 0:00:06][%cal Bg8f6,Bf6e4,Be4d2][%mdl 32]} 6. Re1 {[%emt 0:00:00]} e6 {[%emt 0:00:16]} 7. c3 {[%emt 0:00:00]} Nc6 {[%emt 0:00:08]} 8. d4 {[%emt 0:00:00]} cxd4 {[%emt 0:00:04]} 9. cxd4 {[%emt 0:00:00]} d5 {[%emt 0:00:05]} 10. e5 {[%emt 0:00:00]} Ne4 {[%emt 0:00:04]} 11. Nbd2 {[%emt 0:00:00]} Nxd2 $1 {[%emt 0:00:04] B52: Sicilian: Moscow Variation with 3...Bd7.} ({Don't take} 11... Bb4 12. Nxe4 dxe4 13. Rxe4 $16) 12. Bxd2 {[%emt 0:00:00] [#] Not much happened in this game.} {Predecessor:} Be7 $146 13. Rc1 Nb8 {½-½ (13) Iordachescu,V (2584)-Amonatov,F (2598) Sharjah 2022} 1/2-1/2

[Event "Croatian Championship 2022"]
[Site "Split"]
[Date "2022.12.09"]
[Round "11.5"]
[White "Saric, Ivan"]
[Black "Bosiocic, Marin"]
[Result "1/2-1/2"]
[WhiteElo "2674"]
[BlackElo "2536"]
[Annotator "TA"]
[PlyCount "30"]
[EventDate "2022.11.29"]
[EventType "tourn"]
[EventCountry "CRO"]
[SourceTitle "playchess.com"]
[Source "ChessBase"]
[SourceQuality "1"]
[TimeControl "40/5400+30:1800+30"]

{[%evp 13,14,9,0]} 1. e4 {[%emt 0:00:02]} e6 {[%emt 0:00:03]} 2. d4 {[%emt 0:00:07]} d5 {[%emt 0:00:02]} 3. exd5 {[%emt 0:00:03]} exd5 {[%emt 0:00:04]} 4. Nf3 {[%emt 0:00:04]} Nf6 {[%emt 0:00:04]} 5. Bd3 {[%emt 0:00:03]} Bd6 {[%emt 0:00:04]} 6. O-O {[%emt 0:00:07]} O-O {[%emt 0:00:05]} 7. h3 {[%emt 0:00:02]} h6 {[%emt 0:00:03] [#]} {Predecessor:} 8. c4 $146 {C01: French: Exchange Variation.} dxc4 9. Bxc4 Nc6 10. Nc3 a6 11. a3 Bf5 12. Re1 Qd7 13. Be3 Rfe8 14. Bf1 Rad8 15. d5 Ne5 {0-1 (50) Nihal,S (2648)-Erigaisi,A (2675) Chess.com INT 2022} 1/2-1/2